bitfinex-derivatives/quotes_ETHF0:USTF0_20250410
["timestamp","ask_amount","ask_price","bid_price","bid_amount"]
[1744280339664,2.80447,1598.4,1598.3,1.622]
[1744280339869,1.5525,1598.4,1598.3,2.87405]
[1744280341064,1.5525,1598.4,1598.1,0.9081]
[1744280341268,3.2078,1598.3,1598.1,0.9081]
[1744280341459,1.653,1598.2,1598.0,5.9829]
[1744280341660,3.2078,1598.1,1598.0,5.9829]
[1744280341966,4.46013,1598.1,1598.0,5.9829]
[1744280342164,4.8608,1598.1,1598.0,48.03531]
[1744280342360,4.8608,1598.1,1597.9,0.8858]
[1744280342361,1.25265,1597.7,1597.6,14.5277541]
[1744280342768,4.46045,1597.7,1597.6,14.5277541]
[1744280342969,3.2078,1597.7,1597.6,15.7804741]
[1744280343174,3.2078,1597.7,1597.6,16.6662741]
[1744280343561,2.90565,1597.7,1597.6,15.4135541]
[1744280343757,6.11345,1597.7,1597.6,14.5277541]
[1744280344463,6.99145,1597.7,1597.6,14.5277541]
[1744280344770,3.2078,1597.7,1597.6,15.7804741]
[1744280344975,3.2078,1598.0,1597.9,1.25249]
[1744280345671,4.058,1598.3,1598.2,1.25225]
[1744280345968,4.7577,1598.3,1598.2,1.25225]
[1744280346173,3.2078,1598.3,1598.2,1.25225]
[1744280346565,4.7577,1598.3,1598.2,1.25225]
[1744280346764,4.7577,1598.3,1598.2,2.93795]
[1744280346964,4.7577,1598.3,1598.2,4.69755]
[1744280347166,3.2078,1598.3,1598.2,4.69755]
[1744280347973,0.00937968,1598.4,1598.3,1.25218]
[1744280348173,9.68e-06,1598.4,1598.3,6.14448]
[1744280348369,9.68e-06,1598.4,1598.3,11.14448]
[1744280348874,9.68e-06,1598.4,1598.3,52.44566096]
[1744280349979,13.05800179,1598.6,1598.5,1.25202]
[1744280350180,9.52972132,1598.6,1598.5,8.87682]
[1744280350387,8.24634132,1598.6,1598.5,13.87682]
[1744280350875,5.28864132,1598.6,1598.5,54.67682]
[1744280351085,1.11971132,1598.6,1598.5,54.67682]
[1744280351270,1.32e-06,1598.6,1598.5,54.67682]
[1744280351578,15.07518515,1598.7,1598.6,1.25194]
[1744280351778,9.68e-06,1598.7,1598.6,3.71724]
[1744280351974,9.68e-06,1598.7,1598.6,8.71724]
[1744280352380,9.68e-06,1598.7,1598.6,49.51724]
[1744280354280,9.68e-06,1598.7,1598.6,50.37834]
[1744280354672,9.68e-06,1598.7,1598.5,0.6256]
[1744280354979,9.68e-06,1598.7,1598.4,0.6256]
[1744280354980,3.2078,1598.6,1598.4,0.6256]
[1744280355179,1.25202,1598.5,1598.4,1.538]
[1744280355483,2.81672,1598.5,1598.4,1.538]
[1744280355783,1.5647,1598.5,1598.4,2.7901]
[1744280356582,1.5647,1598.5,1598.4,1.2521]
[1744280357477,6.5647,1598.5,1598.2,14.53713378]
[1744280357678,3.2078,1598.4,1598.3,1.25218]
[1744280357879,1.6535,1598.4,1598.3,1.25218]
[1744280358085,4.0471,1598.6,1598.3,1.6023]
[1744280358299,1.6535,1598.5,1598.2,14.53713378]
[1744280358601,1.25218,1598.3,1598.2,14.53713378]
[1744280358896,6.25218,1598.3,1598.2,7.85541379]
[1744280359100,7.90568,1598.3,1598.2,3.79e-06]
[1744280359401,1.25233,1598.1,1598.0,3.5978657]
[1744280359695,1.25233,1598.1,1597.8,13.8578266]
[1744280359696,1.25249,1597.9,1597.8,13.8578266]
[1744280359990,4.46029,1597.9,1597.8,13.8578266]
[1744280360298,3.13214,1597.5,1596.9,1.25325]
[1744280360596,3.2078,1597.1,1597.0,6.2584]
[1744280360800,3.2078,1597.1,1597.0,7.51159]
[1744280360995,3.2078,1597.4,1597.0,9.4662]
[1744280361200,3.2078,1597.4,1597.1,7.9533]
[1744280361397,3.2078,1597.4,1597.3,1.25292]
[1744280361595,0.00937968,1597.4,1597.3,1.25292]
[1744280361808,0.00937968,1597.4,1597.3,7.51132]
[1744280362796,0.00937968,1597.4,1597.3,8.38322]
[1744280363802,0.00937968,1597.4,1597.3,9.22052]
[1744280364193,0.00937968,1597.4,1597.3,19.22989968]
[1744280365302,0.00937968,1597.4,1597.3,18.39259968]
[1744280365803,3.2078,1597.8,1597.7,1.25265]
[1744280366196,3.2078,1597.8,1597.7,7.51105]
[1744280366400,4.46037,1597.8,1597.7,7.8747]
[1744280366594,3.2078,1597.8,1597.7,7.8747]
[1744280366896,3.2078,1597.8,1597.7,9.12735]
[1744280368789,0.19777968,1597.9,1597.8,1.25257]
[1744280368790,0.00937968,1597.9,1597.8,1.25257]
[1744280368991,0.00937968,1597.9,1597.8,7.51097]
[1744280369305,1.0124,1598.5,1598.1,3.13082]
[1744280369498,1.0124,1598.5,1598.2,1.6914]
[1744280369499,4.2202,1598.5,1598.2,1.6914]
[1744280369690,3.2078,1598.3,1598.2,50.00203]
[1744280369890,4.45998,1598.3,1598.2,1.6914]
[1744280370095,1.25233,1598.1,1597.9,5.71648]
[1744280370403,4.46013,1598.1,1598.0,7.9498]
[1744280370902,4.0318,1598.1,1598.0,9.20221]
[1744280372309,4.0318,1598.1,1598.0,7.9498]
[1744280372310,5.28413,1598.1,1598.0,7.9498]
[1744280372494,5.47183,1598.1,1598.0,7.9498]
[1744280372690,5.28413,1598.1,1598.0,7.9498]
[1744280372906,0.824,1598.1,1598.0,9.20221]
[1744280373103,4.0318,1598.1,1598.0,9.20221]
[1744280373401,5.28413,1598.1,1598.0,7.9498]
[1744280373602,4.2195,1598.1,1598.0,9.20221]
[1744280373799,4.2195,1598.1,1597.7,4.464]
[1744280373998,4.46032,1597.9,1597.8,7.8733]
[1744280374300,5.4719,1598.1,1597.8,7.8733]
[1744280374503,5.4719,1598.1,1597.9,9.12577]
[1744280374701,1.25241,1598.0,1597.9,1.6149]
[1744280374896,5.4719,1598.1,1597.9,9.12579]
[1744280375098,5.47186,1598.1,1597.9,9.12579]
[1744280376006,4.0318,1598.1,1598.0,7.51081]
[1744280376209,5.28413,1598.1,1598.0,9.07611]
[1744280377699,5.28413,1598.1,1598.0,7.8237]
[1744280378007,5.28413,1598.1,1598.0,9.07611]
[1744280378205,4.0318,1598.1,1598.0,9.07611]
[1744280378397,5.28413,1598.1,1598.0,9.07611]
[1744280378596,5.28413,1598.1,1598.0,7.8237]
[1744280378901,5.28413,1598.1,1598.0,9.07611]
[1744280379706,5.28413,1598.1,1598.0,7.8237]
[1744280379998,4.0318,1598.1,1598.0,9.07611]
[1744280380204,5.28413,1598.1,1598.0,9.07611]
[1744280380400,5.28413,1598.1,1598.0,7.8237]
[1744280380601,5.28413,1598.1,1598.0,9.07611]
[1744280381603,5.28413,1598.1,1598.0,7.8237]
[1744280381810,1.25265,1597.7,1597.6,0.00937968]
[1744280382107,4.46045,1597.7,1597.6,6.26777968]
[1744280382406,4.46045,1597.7,1597.6,0.00937968]
[1744280382900,3.2078,1597.7,1597.6,0.00937968]
[1744280383100,3.2078,1597.7,1597.6,17.52987936]
[1744280383303,5.52465,1597.7,1597.6,0.00937968]
[1744280384315,9.98865,1597.7,1597.6,0.00937968]
[1744280384500,10.4918834,1597.7,1597.6,0.00937968]
[1744280384704,9.98865,1597.7,1597.6,0.00937968]
[1744280385817,10.49441349,1597.7,1597.6,0.00937968]
[1744280386111,9.98865,1597.7,1597.6,0.00937968]
[1744280386910,5.33715,1597.7,1597.6,0.00937968]
[1744280387603,5.52375,1597.7,1597.6,0.00937968]
[1744280388113,5.33715,1597.7,1597.6,0.00937968]
[1744280389914,5.33715,1597.7,1597.6,6.26777968]
[1744280390910,3.2078,1597.7,1597.6,10.07149968]
[1744280391313,8.5568803,1597.9,1597.8,1.25257]
[1744280391616,8.5568803,1597.9,1597.7,7.9563]
[1744280391818,8.5568803,1597.9,1597.8,2.95047]
[1744280392019,8.5568803,1597.9,1597.8,1.6979]
[1744280392020,9.8093703,1597.9,1597.8,1.6979]
[1744280392320,5.3490803,1597.9,1597.8,12.9563]
[1744280392615,10.97287799,1598.1,1597.9,1.25246]
[1744280392811,9.72052799,1598.1,1598.0,6.57051]
[1744280393113,9.72052799,1598.1,1598.0,2.10551]
[1744280393313,14.18065799,1598.1,1598.0,7.1115]
[1744280394115,9.72052799,1598.1,1598.0,7.1115]
[1744280394323,9.72052799,1598.1,1598.0,8.36379]
[1744280394520,3.2078,1598.3,1598.2,1.25213]
[1744280394712,0.00937968,1598.4,1598.3,1.25205]
[1744280395212,0.00937968,1598.4,1598.3,7.51045]
[1744280395613,1.26134968,1598.4,1598.3,6.2584]
[1744280395816,1.26134968,1598.4,1598.3,7.8099]
[1744280396109,0.00937968,1598.4,1598.3,17.26975]
[1744280396314,12.15065999,1598.7,1598.4,1.25197]
[1744280396513,12.15065999,1598.7,1598.5,7.6678]
[1744280396722,12.15065999,1598.7,1598.6,2.88722]
[1744280396912,12.15065999,1598.7,1598.6,43.68722]
[1744280397113,12.15065999,1598.7,1598.6,48.68722]
[1744280397312,11.73252765,1598.7,1598.6,48.68722]
[1744280398017,11.73252765,1598.7,1598.6,43.68722]
[1744280398506,11.73252765,1598.7,1598.6,48.68722]
[1744280398909,0.00937968,1598.8,1598.7,1.25174]
[1744280399111,0.00937968,1598.8,1598.7,6.09494]
[1744280399307,0.00937968,1598.8,1598.7,2.88714]
[1744280399914,0.00937968,1598.8,1598.7,1.6354]
[1744280400409,1.25182,1598.6,1598.5,0.00937968]
[1744280400614,4.45962,1598.6,1598.5,0.00937968]
[1744280400818,13.91762,1598.6,1598.5,0.00937968]
[1744280401412,4.45962,1598.6,1598.5,0.00937968]
[1744280401619,4.45962,1598.6,1598.5,1.58377968]
[1744280403626,4.45962,1598.6,1598.5,2.83566968]
[1744280403924,4.45962,1598.6,1598.5,1.58377968]
[1744280404125,4.45962,1598.6,1598.5,2.83566968]
[1744280404316,3.2078,1598.6,1598.5,2.83566968]
[1744280404618,4.45962,1598.6,1598.5,1.58377968]
[1744280404824,4.45962,1598.6,1598.5,2.83566968]
[1744280405227,4.45962,1598.6,1598.5,1.58377968]
[1744280406329,4.45962,1598.6,1598.5,2.83566968]
[1744280406525,4.45962,1598.6,1598.5,1.58377968]
[1744280407226,4.45962,1598.6,1598.5,0.00937968]
[1744280407427,9.45962,1598.6,1598.5,0.00937968]
[1744280407830,11.02772,1598.6,1598.5,0.00937968]
[1744280408323,3.12986,1598.5,1597.9,0.8634]
[1744280408519,1.25221,1598.1,1598.0,1.6606]
[1744280408720,1.25244,1597.8,1597.7,0.8759]
[1744280408922,1.25252,1597.7,1597.6,4.458]
[1744280409125,1.2526,1597.6,1597.5,0.8666]
[1744280409529,1.2526,1597.6,1597.4,6.59598968]
[1744280409828,1.2526,1597.6,1597.5,1.25268]
[1744280410128,1.2526,1597.6,1597.5,2.91328]
[1744280410316,2.88364968,1597.7,1597.5,2.91328]
[1744280410927,1.2526,1597.6,1597.5,1.6606]
[1744280411127,1.26194968,1597.7,1597.5,2.91328]
[1744280411429,0.00937968,1597.7,1597.6,1.2526]
[1744280411727,1.26189968,1597.7,1597.5,2.91322]
[1744280411921,0.00937968,1597.7,1597.5,1.6606]
[1744280412117,0.00937968,1597.7,1597.6,1.2526]
[1744280413330,0.00937968,1597.7,1597.5,1.6606]
[1744280413534,1.2526,1597.6,1597.5,1.6606]
[1744280413726,2.84443968,1597.7,1597.5,2.91327]
[1744280414232,1.2526,1597.6,1597.5,1.6606]
[1744280414734,1.25268,1597.5,1597.4,0.00937968]
[1744280415030,1.25301,1597.1,1596.9,1.25311]
[1744280415226,1.25301,1597.1,1596.9,2.83521]
[1744280416331,1.25307,1597.0,1596.9,1.5821]
[1744280416532,4.46077,1597.2,1597.0,1.25307]
[1744280416731,6.13407,1597.2,1597.1,1.5821]
[1744280417934,1.25306,1597.1,1596.9,1.25309]
[1744280418136,1.6828,1597.1,1597.0,2.88217]
[1744280418432,3.2078,1597.4,1597.2,1.25291]
[1744280418631,4.46056,1597.4,1597.3,1.6291]
[1744280418833,6.14336,1597.4,1597.3,1.6291]
[1744280419234,4.8906,1597.4,1597.0,1.25305]
[1744280419535,1.25289,1597.3,1597.1,2.88209]
[1744280419735,1.25289,1597.3,1597.2,1.6291]
[1744280419932,2.93569,1597.3,1597.2,1.6291]
[1744280421129,1.25299,1597.1,1597.0,1.25307]
[1744280421329,1.25291,1597.2,1596.9,1.6003]
[1744280421531,1.25296,1597.2,1597.0,1.25304]
[1744280421732,1.25296,1597.2,1597.1,1.6003]
[1744280422240,1.25296,1597.2,1597.1,2.85329]
[1744280422940,1.25289,1597.3,1597.1,1.6003]
[1744280423141,1.25289,1597.3,1597.2,1.6003]
[1744280423339,1.25299,1597.1,1597.0,1.25301]
[1744280423636,1.2529,1597.3,1597.1,1.25299]
[1744280423838,1.2529,1597.3,1597.2,1.6682]
[1744280425141,2.883,1597.4,1597.2,1.6682]
[1744280425437,1.25283,1597.3,1597.2,2.92109]
[1744280425834,1.25283,1597.3,1597.2,1.6682]
[1744280426237,2.88303,1597.3,1597.2,2.92111]
[1744280426436,1.25283,1597.3,1597.2,1.6682]
[1744280426636,4.46061,1597.4,1597.2,2.92106]
[1744280426838,1.25283,1597.3,1597.2,2.92106]
[1744280428240,1.25283,1597.3,1597.2,1.6682]
[1744280430240,1.25299,1597.1,1597.0,1.5377]
[1744280430543,4.46079,1597.1,1597.0,1.5377]
[1744280431237,1.25315,1596.9,1596.8,1.26257968]
[1744280431432,1.25315,1596.9,1596.8,1.54707968]
[1744280432135,1.25315,1596.9,1596.8,0.00937968]
[1744280432337,4.46095,1596.9,1596.8,1.54707968]
[1744280434340,3.13347,1596.6,1596.1,1.25374]
[1744280434543,4.46145,1596.3,1596.2,1.6043]
[1744280434736,1.2536,1596.4,1596.3,1.25362]
[1744280435041,1.2536,1596.4,1596.2,2.85793]
[1744280435231,6.8674,1596.5,1596.2,2.85799]
[1744280435440,1.5392,1596.4,1596.2,2.85799]
[1744280435640,8.62682,1596.4,1596.3,1.6043]
[1744280436036,5.834,1596.4,1596.3,2.85792]
[1744280436248,1.25354,1596.4,1596.3,1.6043]
[1744280436631,1.25354,1596.4,1596.3,2.85792]
[1744280436953,1.25354,1596.4,1596.3,1.6043]
[1744280437237,5.84337968,1596.5,1596.3,2.85792]
[1744280437443,1.25354,1596.4,1596.3,1.6043]
[1744280437644,7.09688968,1596.5,1596.3,1.25357]
[1744280437847,1.25358,1596.4,1596.3,1.25362]
[1744280438046,1.25358,1596.4,1596.2,1.25364]
[1744280438238,1.25358,1596.4,1596.3,1.25362]
[1744280438745,7.50797968,1596.5,1596.0,4.437]
[1744280438939,0.00937968,1596.5,1596.4,1.25354]
[1744280439542,0.00937968,1596.5,1596.4,8.02554]
[1744280441346,4.46083,1597.1,1596.9,1.25311]
[1744280441548,4.46083,1597.1,1596.7,16.77505]
[1744280441748,3.2078,1597.1,1597.0,1.25307]
[1744280445144,3.2078,1597.1,1596.9,0.00937968]
[1744280445349,1.25307,1597.0,1596.9,0.00937968]
[1744280445651,6.06095,1597.1,1596.9,1.26252968]
[1744280446453,1.25307,1597.0,1596.9,0.00937968]
[1744280446650,1.25307,1597.0,1596.9,1.26252968]
[1744280447155,1.25307,1597.0,1596.9,0.00937968]
[1744280448056,4.53557,1597.0,1596.9,0.00937968]
[1744280448253,3.2078,1597.1,1596.9,1.26252968]
[1744280448453,4.46083,1597.1,1597.0,1.25307]
[1744280448653,3.2078,1597.1,1596.9,1.26249968]
[1744280448856,4.46087,1597.1,1596.9,1.26249968]
[1744280449651,1.25307,1597.0,1596.9,1.26249968]
[1744280450357,1.25307,1597.0,1596.9,0.00937968]
[1744280450755,2.81037,1597.0,1596.9,0.00937968]
[1744280451963,7.81037,1597.0,1596.9,0.00937968]
[1744280452152,7.81037,1597.0,1596.3,3.2078]
[1744280452153,1.25354,1596.4,1596.3,3.2078]
[1744280452354,1.25367,1596.3,1596.2,1.2537]
[1744280453247,1.2537,1596.2,1596.1,6.55451]
[1744280453443,9.77497,1596.5,1596.1,6.55451]
[1744280453648,1.2537,1596.2,1596.1,0.8638]
[1744280453849,1.2537,1596.2,1596.1,2.11758]
[1744280454050,1.2537,1596.2,1596.1,3.76878]
[1744280454255,1.2537,1596.2,1596.1,2.515]
[1744280454651,3.21717968,1596.3,1595.8,9.78403554]
[1744280454953,3.21717968,1596.3,1596.1,1.6512]
[1744280454954,1.2537,1596.2,1596.1,1.6512]
[1744280455861,1.2537,1596.2,1596.1,4.859]
[1744280456058,1.2537,1596.2,1596.1,1.6512]
[1744280456558,1.2537,1596.2,1596.1,2.90498]
[1744280456766,1.2537,1596.2,1596.1,1.6512]
[1744280457855,0.00937968,1596.3,1596.2,1.2537]
[1744280458562,0.00937968,1596.3,1596.2,1.5615]
[1744280458953,1.26311968,1596.3,1596.2,1.5615]
[1744280460456,1.25398,1596.0,1595.9,53.1138]
[1744280460655,1.25394,1596.1,1596.0,1.5777]
[1744280461060,1.6131,1596.2,1596.0,1.5777]
[1744280461261,1.2539,1596.1,1596.0,1.5777]
[1744280461462,1.2539,1596.1,1596.0,2.83168]
[1744280461960,3.2078,1596.1,1595.9,4.526]
[1744280462161,3.2078,1596.1,1596.0,2.83168]
[1744280462663,4.4617,1596.1,1596.0,1.5777]
[1744280463358,1.2539,1596.1,1596.0,1.5777]
[1744280464671,6.07461,1596.2,1596.0,1.5777]
[1744280464869,4.46151,1596.2,1596.1,1.25378]
[1744280465066,0.00937968,1596.3,1596.1,1.25378]
[1744280465371,0.00937968,1596.3,1596.2,2.9508]
[1744280465873,0.00937968,1596.3,1596.2,15.6856]
[1744280467085,7.29250203,1596.4,1596.3,1.25362]
[1744280467385,4.71262332,1596.4,1596.3,2.09662]
[1744280467577,4.71262332,1596.4,1596.3,7.94822]
[1744280467773,1.57827906,1596.4,1596.3,7.94822]
[1744280467981,9.70146329,1596.6,1596.5,1.25358]
[1744280468282,9.70146329,1596.6,1596.5,8.98838]
[1744280468484,9.70146329,1596.6,1596.5,13.98838]
[1744280469481,0.00937968,1596.7,1596.6,1.25351]
[1744280469681,9.68e-06,1596.7,1596.6,1.25351]
[1744280469986,8.27333329,1597.3,1596.8,3.13322]
[1744280470286,3.2078,1597.1,1596.7,40.8]
[1744280470584,3.2078,1597.1,1596.7,42.05336]
[1744280470585,2.90172,1597.0,1596.7,42.05336]
[1744280470790,1.6485,1596.9,1596.7,42.05336]
[1744280471272,1.6485,1596.9,1596.7,1.25336]
[1744280471585,1.6485,1596.9,1596.6,1.6373]
[1744280471785,0.00937968,1597.0,1596.6,45.57102]
[1744280471988,0.00937968,1597.0,1596.9,1.25327]
[1744280472189,1.65787968,1597.0,1596.9,1.25327]
[1744280472489,1.65787968,1597.0,1596.9,2.88237]
[1744280474082,0.00937968,1597.0,1596.9,2.88237]
[1744280475777,0.00937968,1597.0,1596.9,6.09017]
[1744280479883,0.00937968,1597.0,1596.9,1.25327]
[1744280480291,0.80447968,1597.0,1596.9,1.25327]
[1744280480491,3.32397968,1597.0,1596.9,1.25327]
[1744280480892,4.57716968,1597.0,1596.9,1.25327]
[1744280481187,4.57716968,1597.0,1596.7,2.4437]
[1744280481188,11.53177968,1597.0,1596.7,1.6279]
[1744280481489,1.6865,1596.9,1596.8,1.25332]
[1744280481684,1.25345,1596.7,1596.5,4.46134]
[1744280481991,1.6766,1596.6,1596.5,1.25359]
[1744280482185,1.6766,1596.6,1596.5,42.05359]
[1744280484990,2.93011,1596.6,1596.5,40.8]
[1744280485197,6.561,1596.6,1596.4,1.25362]
[1744280485396,1.7059,1596.5,1596.4,1.25367]
[1744280486698,1.7059,1596.5,1596.2,47.76317968]
[1744280486892,1.7059,1596.5,1596.4,1.25367]
[1744280494500,3.2078,1596.6,1596.5,1.25359]
[1744280494697,1.25332,1596.9,1596.5,1.25359]
[1744280494698,3.2078,1596.8,1596.7,1.25337]
[1744280495204,4.8494,1596.8,1596.7,1.25337]
[1744280499402,1.25371,1596.4,1596.2,2.10796968]
[1744280499602,1.25353,1596.6,1596.2,3.98872968]
[1744280499907,2.6635,1596.5,1596.4,1.25367]
[1744280500107,3.6609,1596.5,1596.4,1.25367]
[1744280501504,1.6486,1596.5,1596.4,1.25367]
[1744280501710,3.2078,1596.7,1596.6,1.25351]
[1744280503009,6.12133,1596.7,1596.5,1.6907]
[1744280503210,1.6601,1596.6,1596.5,2.94429]
[1744280504508,1.6601,1596.6,1596.5,1.25359]
[1744280504709,3.2078,1596.7,1596.6,1.25351]
[1744280504906,3.2078,1596.7,1596.6,5.79751]
[1744280505303,3.2078,1596.7,1596.6,49.31841]
[1744280505509,3.2078,1596.7,1596.6,8.51841]
[1744280506108,3.2078,1596.7,1596.6,49.31841]
[1744280507603,4.8243,1596.7,1596.6,49.31841]
[1744280509014,3.2078,1596.7,1596.6,49.31841]
[1744280509214,1.5868,1596.9,1596.8,1.25335]
[1744280509418,2.84007,1596.9,1596.8,1.25335]
[1744280509718,2.84007,1596.9,1596.7,2.79037]
[1744280509915,1.5868,1596.8,1596.7,2.79037]
[1744280510313,2.84015,1596.8,1596.7,1.537]
[1744280510514,1.25343,1596.7,1596.5,2.26563]
[1744280510817,2.84037,1596.6,1596.4,12.077]
[1744280511112,1.5868,1596.5,1596.4,7.33467]
[1744280511314,1.5868,1596.5,1596.4,5.79767]
[1744280511517,1.5868,1596.5,1596.4,46.59767]
[1744280512608,1.5868,1596.5,1596.4,5.79767]
[1744280512809,2.84039,1596.5,1596.4,5.79767]
[1744280513210,2.84039,1596.5,1596.4,1.25367]
[1744280513416,1.5868,1596.5,1596.4,1.25367]
[1744280513817,2.84039,1596.5,1596.4,1.25367]
[1744280514112,1.5868,1596.5,1596.4,1.25367]
[1744280514712,2.84039,1596.5,1596.4,1.25367]
[1744280514927,1.5868,1596.5,1596.4,1.25367]
[1744280515516,2.84039,1596.5,1596.4,42.05367]
[1744280515721,1.5868,1596.5,1596.4,42.05367]
[1744280517526,6.1207338,1596.6,1596.5,1.25359]
[1744280517723,7.8143338,1596.6,1596.5,1.25359]
[1744280518321,11.0221338,1596.6,1596.4,42.0536]
[1744280518521,1.6248,1596.5,1596.4,42.0536]
[1744280519523,6.4920238,1596.5,1596.4,42.0536]
[1744280521524,6.4920238,1596.5,1596.3,1.25369]
[1744280521720,1.25373,1596.4,1596.2,7.76117968]
[1744280522027,1.6096,1596.4,1596.3,42.05371]
[1744280522417,1.6096,1596.4,1596.2,4.55337968]
[1744280522619,2.1104,1596.3,1596.2,4.55337968]
[1744280523237,3.72,1596.3,1596.2,4.55337968]
[1744280523522,3.72,1596.3,1596.2,5.80719968]
[1744280523728,3.72,1596.3,1596.2,1.26319968]
[1744280524117,4.97374,1596.3,1596.2,0.00937968]
[1744280525130,3.72,1596.3,1596.2,1.26319968]
[1744280525430,3.2078,1596.4,1596.3,1.25374]
[1744280525631,4.8672238,1596.5,1596.4,1.25367]
[1744280526130,4.8672238,1596.5,1596.4,2.95367]
[1744280526824,6.5129238,1596.5,1596.4,2.95367]
[1744280527024,7.7665138,1596.5,1596.4,2.95367]
[1744280527229,7.7665138,1596.5,1596.4,1.7]
[1744280527431,10.9743138,1596.5,1596.4,1.7]
[1744280527729,10.9743138,1596.5,1596.2,1.26314968]
[1744280527730,0.94021557,1596.3,1596.2,1.26314968]
[1744280528329,2.59631557,1596.3,1596.2,1.26314968]
[1744280528524,3.85005557,1596.3,1596.2,0.00937968]
[1744280528723,8.10835557,1596.3,1596.2,0.00937968]
[1744280529119,13.10835557,1596.3,1596.2,0.00937968]
[1744280530326,8.10835557,1596.3,1596.2,0.00937968]
[1744280530529,6.85461557,1596.3,1596.2,1.26319968]
[1744280530825,0.94021557,1596.3,1596.2,1.26319968]
[1744280531231,0.94021557,1596.3,1596.2,4.01739968]
[1744280531432,21.27338198,1596.3,1596.2,4.01739968]
[1744280531933,24.13782198,1596.3,1596.2,0.00937968]
[1744280532231,21.27338198,1596.3,1596.2,1.26319968]
[1744280532431,21.27338198,1596.3,1596.2,4.01739968]
[1744280532824,22.88408198,1596.3,1596.2,4.01739968]
[1744280535228,2.55091557,1596.3,1596.2,4.01739968]
[1744280538450,0.94021557,1596.3,1596.2,4.01739968]
[1744280538826,2.19395557,1596.3,1596.2,2.76357968]
[1744280539031,3.79705557,1596.3,1596.2,4.01739968]
[1744280539237,2.54331557,1596.3,1596.2,4.01739968]
[1744280539739,3.79705557,1596.3,1596.2,4.01739968]
[1744280539942,6.47803709,1596.3,1596.2,4.01739968]
[1744280540743,4.87493709,1596.3,1596.2,4.01739968]
[1744280542244,6.49823709,1596.3,1596.2,4.01739968]
[1744280546253,4.87493709,1596.3,1596.2,12.22519968]
[1744280546647,4.87493709,1596.3,1596.2,53.02519968]
[1744280546946,4.87493709,1596.3,1596.2,49.81739968]
[1744280547148,4.87493709,1596.3,1596.2,44.81739968]
[1744280547549,4.87493709,1596.3,1596.2,43.56357968]
[1744280547749,4.87493709,1596.3,1596.2,2.76357968]
[1744280547949,4.87493709,1596.3,1596.2,4.01727968]
[1744280548152,7.71795709,1596.3,1596.2,0.00937968]
[1744280549246,2.84302,1596.3,1596.2,0.00937968]
[1744280549846,1.5894,1596.3,1596.2,0.00937968]
[1744280550250,2.84302,1596.3,1596.2,0.00937968]
[1744280550452,2.84314,1596.3,1596.2,0.00937968]
[1744280553552,11.10039817,1596.3,1596.2,0.00937968]
[1744280553755,9.84665817,1596.3,1596.2,1.26319968]
[1744280554254,11.10039817,1596.3,1596.2,1.26319968]
[1744280554553,11.10039817,1596.3,1596.2,0.00937968]
[1744280556655,11.10039817,1596.3,1596.2,1.26319968]
[1744280557152,11.10039817,1596.3,1596.2,0.00937968]
[1744280557861,3.78339249,1596.3,1596.2,0.00937968]
[1744280560657,14.61739249,1596.3,1596.2,0.00937968]
[1744280560960,9.61739249,1596.3,1596.2,0.00937968]
[1744280561461,19.04439249,1596.3,1596.2,0.00937968]
[1744280561659,14.04439249,1596.3,1596.2,0.00937968]
[1744280562558,34.39879455,1596.3,1596.2,0.00937968]
[1744280564665,29.97179455,1596.3,1596.2,0.00937968]
[1744280564865,27.12865455,1596.3,1596.2,10.69107968]
[1744280565161,21.29465455,1596.3,1596.2,10.69107968]
[1744280565368,21.29465455,1596.3,1596.2,13.89887968]
[1744280565971,21.29465455,1596.3,1596.2,16.54697968]
[1744280567768,23.72111683,1596.3,1596.2,22.54297968]
[1744280568860,22.83101683,1596.3,1596.2,22.54297968]
[1744280570373,19.49900683,1596.3,1596.2,22.54297968]
[1744280570671,5.84337968,1597.0,1596.9,1.25315]
[1744280570971,0.00937968,1597.0,1596.9,1.25315]
[1744280571161,0.00937968,1597.0,1596.9,4.82565]
[1744280572167,0.00937968,1597.0,1596.9,3.5725]
[1744280572368,0.00937968,1597.0,1596.9,4.82565]
[1744280572971,1.71307968,1597.0,1596.9,4.82565]
[1744280573372,9.03952592,1597.0,1596.9,4.82565]
[1744280573674,7.33582592,1597.0,1596.9,4.82565]
[1744280574573,11.79669592,1597.0,1596.9,3.5725]
[1744280574773,1.25333,1596.7,1596.5,1.25343]
[1744280574975,1.25333,1596.7,1596.5,1.25341]
[1744280575165,1.7037,1596.6,1596.5,1.25341]
[1744280575471,1.7037,1596.6,1596.5,2.86961]
[1744280576277,1.7037,1596.6,1596.5,1.6162]
[1744280576570,1.7037,1596.6,1596.5,1.25346]
[1744280576875,2.9571,1596.6,1596.4,7.30239]
[1744280577077,2.7182,1596.6,1596.5,1.25346]
[1744280581475,5.834,1596.7,1596.4,6.0479]
[1744280581776,7.3907,1596.7,1596.6,1.25338]
[1744280581980,10.70812676,1596.7,1596.6,1.25338]
[1744280582371,10.70812676,1596.7,1596.6,2.32988]
[1744280582575,4.87412676,1596.7,1596.6,2.32988]
[1744280584381,4.87412676,1596.7,1596.6,3.95678]
[1744280584579,6.42852676,1596.7,1596.6,3.95678]
[1744280584774,7.68182676,1596.7,1596.5,1.2534]
[1744280585078,1.25339,1596.6,1596.4,3.95692]
[1744280585278,1.636,1596.5,1596.3,9.87367]
[1744280585476,1.636,1596.5,1596.3,6.66587]
[1744280585673,0.9812,1596.6,1596.5,1.25346]
[1744280585878,2.6172,1596.6,1596.5,1.25346]
[1744280586282,2.6172,1596.6,1596.4,3.84388]
[1744280586583,2.6172,1596.6,1596.5,1.25346]
[1744280586770,2.6172,1596.6,1596.5,2.79126]
[1744280587673,6.8361,1596.7,1596.6,1.25338]
[1744280587872,6.8361,1596.7,1596.6,2.79118]
[1744280588382,1.0021,1596.7,1596.6,2.79118]
[1744280588584,2.6459,1596.7,1596.6,2.79118]